[Event "Polish Youth G16 Championship 2023"]
[Site "Jastrzebia Gora"]
[Date "2023.03.19"]
[Round "9.5"]
[White "Oborska, Magda"]
[Black "Ziobrowska, Maja"]
[Result "1/2-1/2"]
[ECO "C68"]
[WhiteElo "1613"]
[BlackElo "1758"]
[Annotator "NA RC COMBH"]
[PlyCount "93"]
[EventDate "2023.03.11"]
[EventType "swiss"]
[EventCountry "POL"]
[SourceTitle "playchess.com"]
[Source "ChessBase"]
[SourceQuality "1"]
[TimeControl "40/5400+30:1800+30"]

1. e4 {[%emt 0:02:25]} e5 {[%emt 0:00:04]} 2. Nf3 {[%emt 0:00:16]} Nc6 {[%emt 0:00:05]} 3. Bb5 {[%emt 0:00:04]} a6 {[%emt 0:00:03]} 4. Bxc6 {[%emt 0:00:52]} dxc6 {[%emt 0:01:03]} 5. d3 Bd6 {[%emt 0:02:29]} 6. h3 {[%emt 0:00:12]} Ne7 {[%emt 0:02:32]} 7. Nbd2 {[%emt 0:00:35]} c5 {[%emt 0:04:25]} 8. Nc4 {[%emt 0:01:14]} Nc6 {[%emt 0:00:58]} 9. c3 {[%emt 0:03:12]} Be6 {[%emt 0:03:45]} 10. Be3 {[%emt 0:01:01]} h6 {[%emt 0:05:02]} 11. Nxd6+ {[%emt 0:02:09]} Qxd6 {[%emt 0:02:16]} 12. d4 {[%emt 0:13:49]} cxd4 {[%emt 0:01:58]} 13. cxd4 {[%emt 0:00:39]} exd4 {[%emt 0:05:20]} 14. Bxd4 {[%emt 0:15:27]} Qb4+ {[%emt 0:09:57]} 15. Qd2 {[%emt 0:03:11]} Rd8 {[%emt 0:00:53]} 16. Qxb4 {[%emt 0:00:32]} Nxb4 {[%emt 0:00:05]} 17. O-O {[%emt 0:04:36]} f6 {[%emt 0:29:37]} 18. b3 {[%emt 0:09:17]} Kf7 {[%emt 0:05:45]} 19. Bc3 {[%emt 0:17:25]} Nd3 {[%emt 0:04:14]} 20. Rfd1 {[%emt 0:02:20]} c5 {[%emt 0:05:04]} 21. Ba5 {[%emt 0:01:25]} Rd7 {[%emt 0:00:42]} 22. Rd2 {[%emt 0:00:25]} Nf4 {[%emt 0:02:09]} 23. Rad1 {[%emt 0:01:04]} Rxd2 {[%emt 0:01:27]} 24. Rxd2 {[%emt 0:00:33]} Rc8 {[%emt 0:00:42]} 25. Rc2 {[%emt 0:08:50]} c4 {[%emt 0:02:44]} 26. Nd4 {[%emt 0:03:35]} cxb3 {[%emt 0:01:00]} 27. Rxc8 {[%emt 0:01:44]} Bxc8 {[%emt 0:02:29]} 28. Nxb3 {[%emt 0:00:46]} Nd3 {[%emt 0:03:59]} 29. a3 {[%emt 0:02:47]} Be6 {[%emt 0:01:29]} 30. Nd2 {[%emt 0:00:41]} b5 {[%emt 0:00:30]} 31. Nb1 {[%emt 0:00:51]} Nc5 {[%emt 0:01:53]} 32. Nc3 {[%emt 0:00:53]} Bc4 {[%emt 0:00:06]} 33. f3 {[%emt 0:02:13]} Nb7 {[%emt 0:00:42]} 34. Bb6 {[%emt 0:00:31]} a5 {[%emt 0:00:43]} 35. Kf2 {[%emt 0:00:11]} b4 {[%emt 0:00:13]} 36. axb4 {[%emt 0:00:10]} axb4 {[%emt 0:00:07]} 37. Nd1 {[%emt 0:00:11]} b3 {[%emt 0:00:39]} 38. Nb2 {[%emt 0:00:20]} Bb5 {[%emt 0:00:31]} 39. g3 {[%emt 0:00:18]} h5 {[%emt 0:00:50]} 40. h4 {[%emt 0:00:00]} Ke6 {[%emt 0:00:00]} 41. Ke3 {[%emt 0:03:51]} Nd6 {[%emt 0:07:42]} 42. Bc5 {[%emt 0:01:56]} g5 {[%emt 0:03:06]} 43. Bb4 {[%emt 0:01:41]} Nf7 {[%emt 0:02:26]} 44. Bc3 {[%emt 0:01:32]} f5 {[%emt 0:05:29]} 45. hxg5 {[%emt 0:01:01]} Nxg5 {[%emt 0:00:54]} 46. exf5+ {[%emt 0:00:05]} Kxf5 {[%emt 0:00:11]} 47. g4+ {[%emt 0:00:25]} 1/2-1/2

[Event "Polish Youth G16 Championship 2023"]
[Site "Jastrzebia Gora"]
[Date "2023.03.19"]
[Round "9.6"]
[White "Lazniewska, Zofia"]
[Black "Szopa, Emilia"]
[Result "0-1"]
[ECO "B17"]
[WhiteElo "1621"]
[BlackElo "1709"]
[Annotator "NA RC COMBH"]
[PlyCount "116"]
[EventDate "2023.03.11"]
[EventType "swiss"]
[EventCountry "POL"]
[SourceTitle "playchess.com"]
[Source "ChessBase"]
[SourceQuality "1"]
[TimeControl "40/5400+30:1800+30"]

1. e4 {[%emt 0:00:01]} c6 {[%emt 0:00:24]} 2. d4 {[%emt 0:00:06]} d5 {[%emt 0:00:35]} 3. Nc3 {[%emt 0:00:07]} dxe4 {[%emt 0:00:14]} 4. Nxe4 {[%emt 0:00:06]} Nd7 {[%emt 0:00:53]} 5. Nf3 {[%emt 0:01:23]} Ngf6 {[%emt 0:00:33]} 6. Ng3 {[%emt 0:00:40]} g6 {[%emt 0:00:19]} 7. Bd3 {[%emt 0:00:36]} Bg7 {[%emt 0:01:55]} 8. O-O {[%emt 0:01:13]} O-O {[%emt 0:01:40]} 9. c3 {[%emt 0:01:00]} Qc7 {[%emt 0:01:05]} 10. Re1 {[%emt 0:02:24]} e6 {[%emt 0:01:06]} 11. Ne4 {[%emt 0:06:45]} b6 {[%emt 0:04:55]} 12. Nxf6+ {[%emt 0:07:02]} Bxf6 {[%emt 0:02:50]} 13. Bh6 {[%emt 0:05:27]} Re8 {[%emt 0:02:34]} 14. Qd2 {[%emt 0:04:29]} Bb7 {[%emt 0:03:05]} 15. Bf4 {[%emt 0:02:20]} Qd8 {[%emt 0:04:03]} 16. Ne5 {[%emt 0:04:01]} c5 {[%emt 0:10:45]} 17. Bb5 {[%emt 0:05:08]} Nxe5 {[%emt 0:01:11]} 18. dxe5 {[%emt 0:03:11]} Qxd2 {[%emt 0:00:19]} 19. Bxd2 {[%emt 0:00:09]} Red8 {[%emt 0:00:07]} 20. Bf4 {[%emt 0:00:37]} Be7 {[%emt 0:02:03]} 21. Rad1 {[%emt 0:01:54]} a6 {[%emt 0:01:46]} 22. Ba4 {[%emt 0:01:10]} Bd5 {[%emt 0:02:13]} 23. a3 {[%emt 0:03:08]} b5 {[%emt 0:06:29]} 24. Bc2 {[%emt 0:00:19]} Rab8 {[%emt 0:00:06]} 25. b3 {[%emt 0:06:19]} a5 {[%emt 0:02:23]} 26. Rb1 {[%emt 0:03:19]} Rb7 {[%emt 0:02:23]} 27. Red1 {[%emt 0:01:49]} c4 {[%emt 0:05:13]} 28. bxc4 {[%emt 0:10:48]} Bxc4 {[%emt 0:02:15]} 29. Rxd8+ {[%emt 0:00:21]} Bxd8 {[%emt 0:00:06]} 30. a4 {[%emt 0:01:59]} b4 {[%emt 0:02:34]} 31. cxb4 {[%emt 0:05:26]} axb4 {[%emt 0:04:42]} 32. Bb3 {[%emt 0:01:11]} Bxb3 {[%emt 0:01:32]} 33. Rxb3 {[%emt 0:00:02]} Rd7 {[%emt 0:04:41]} 34. g3 {[%emt 0:00:22]} Be7 {[%emt 0:01:41]} 35. Be3 {[%emt 0:08:03]} Rd1+ {[%emt 0:01:39]} 36. Kg2 {[%emt 0:00:03]} Ra1 {[%emt 0:00:28]} 37. Bd4 {[%emt 0:01:27]} Rxa4 {[%emt 0:00:19]} 38. Bb2 {[%emt 0:01:25]} Kf8 {[%emt 0:00:48]} 39. f4 {[%emt 0:00:44]} Ra2 {[%emt 0:00:50]} 40. Kf3 {[%emt 0:00:00]} Ke8 {[%emt 0:00:00]} 41. Ke4 {[%emt 0:01:42]} Kd7 {[%emt 0:03:49]} 42. Kd3 {[%emt 0:00:54]} Kc6 {[%emt 0:01:34]} 43. h3 {[%emt 0:01:14]} Kd5 {[%emt 0:01:15]} 44. g4 {[%emt 0:00:52]} h6 {[%emt 0:00:32]} 45. Kc2 {[%emt 0:02:45]} Kc4 {[%emt 0:01:00]} 46. Rf3 {[%emt 0:01:04]} f5 {[%emt 0:02:22]} 47. gxf5 {[%emt 0:01:34]} exf5 {[%emt 0:00:27]} 48. Rg3 {[%emt 0:00:46]} g5 {[%emt 0:00:32]} 49. fxg5 {[%emt 0:01:14]} hxg5 {[%emt 0:02:32]} 50. Rb3 {[%emt 0:01:58]} Bc5 {[%emt 0:01:01]} 51. e6 {[%emt 0:01:22]} Ra6 {[%emt 0:03:26]} 52. Rg3 {[%emt 0:01:06]} Rxe6 {[%emt 0:01:12]} 53. Rxg5 {[%emt 0:00:46]} Re2+ {[%emt 0:00:30]} 54. Kb1 {[%emt 0:00:06]} Be3 {[%emt 0:01:23]} 55. Rxf5 {[%emt 0:03:10]} Kb3 {[%emt 0:00:25]} 56. Rf1 {[%emt 0:01:00]} Rxb2+ {[%emt 0:00:09]} 57. Ka1 {[%emt 0:00:04]} Ra2+ {[%emt 0:00:17]} 58. Kb1 {[%emt 0:00:08]} Bd4 {[%emt 0:00:18]} 0-1

[Event "Polish Youth G16 Championship 2023"]
[Site "Jastrzebia Gora"]
[Date "2023.03.19"]
[Round "9.7"]
[White "Nieckarz, Maja"]
[Black "Salamon, Julia"]
[Result "1/2-1/2"]
[ECO "B40"]
[WhiteElo "1493"]
[BlackElo "1701"]
[Annotator "NA RC COMBH"]
[PlyCount "114"]
[EventDate "2023.03.11"]
[EventType "swiss"]
[EventCountry "POL"]
[SourceTitle "playchess.com"]
[Source "ChessBase"]
[SourceQuality "1"]
[TimeControl "40/5400+30:1800+30"]

1. e4 {[%emt 0:08:42]} c5 {[%emt 0:00:03]} 2. Nf3 {[%emt 0:00:07]} e6 {[%emt 0:00:03]} 3. d4 {[%emt 0:00:03]} cxd4 {[%emt 0:00:03]} 4. Nxd4 {[%emt 0:00:04]} Nf6 {[%emt 0:00:02]} 5. Nc3 {[%emt 0:00:05]} Nc6 {[%emt 0:00:03]} 6. g3 {[%emt 0:00:04]} Bb4 {[%emt 0:05:51]} 7. Bg2 {[%emt 0:00:09]} O-O {[%emt 0:00:21]} 8. O-O {[%emt 0:00:06]} a6 {[%emt 0:06:11]} 9. Nxc6 {[%emt 0:07:21]} dxc6 {[%emt 0:09:23]} 10. e5 {[%emt 0:02:01]} Bxc3 {[%emt 0:03:22]} 11. bxc3 {[%emt 0:01:44]} Nd7 {[%emt 0:04:49]} 12. Qd4 {[%emt 0:13:59]} Qa5 {[%emt 0:07:32]} 13. f4 {[%emt 0:02:49]} Rb8 {[%emt 0:05:28]} 14. Qb4 {[%emt 0:01:55]} Qc7 {[%emt 0:06:13]} 15. c4 {[%emt 0:03:02]} c5 {[%emt 0:02:15]} 16. Qc3 {[%emt 0:02:33]} b5 {[%emt 0:01:03]} 17. Rd1 {[%emt 0:05:37]} Bb7 {[%emt 0:09:42]} 18. Be3 {[%emt 0:01:55]} Bxg2 {[%emt 0:07:12]} 19. Kxg2 {[%emt 0:00:06]} b4 {[%emt 0:03:50]} 20. Qe1 {[%emt 0:01:26]} Nb6 {[%emt 0:01:43]} 21. Qf1 {[%emt 0:01:21]} Rfc8 {[%emt 0:00:40]} 22. Rd6 {[%emt 0:02:36]} Qb7+ {[%emt 0:04:01]} 23. Kg1 {[%emt 0:01:22]} Qe4 {[%emt 0:00:41]} 24. Qd3 {[%emt 0:01:07]} Qxd3 {[%emt 0:00:19]} 25. cxd3 {[%emt 0:00:38]} a5 {[%emt 0:00:03]} 26. Rb1 {[%emt 0:00:59]} Na4 {[%emt 0:02:08]} 27. Ra6 {[%emt 0:04:40]} Nc3 {[%emt 0:00:04]} 28. Ra1 {[%emt 0:01:30]} a4 {[%emt 0:06:58]} 29. Bd2 {[%emt 0:03:48]} Rd8 {[%emt 0:01:22]} 30. Bxc3 {[%emt 0:02:26]} bxc3 {[%emt 0:00:04]} 31. Rd6 {[%emt 0:05:44]} Rxd6 {[%emt 0:01:52]} 32. exd6 {[%emt 0:00:05]} c2 {[%emt 0:00:02]} 33. Kf2 {[%emt 0:00:13]} Kf8 {[%emt 0:02:38]} 34. Rc1 {[%emt 0:00:23]} Rb2 {[%emt 0:00:57]} 35. a3 {[%emt 0:01:12]} Ra2 {[%emt 0:00:56]} 36. Ke2 {[%emt 0:00:08]} Ke8 {[%emt 0:01:06]} 37. Kd2 {[%emt 0:00:43]} Rxa3 {[%emt 0:00:08]} 38. Rxc2 {[%emt 0:00:15]} Rb3 {[%emt 0:00:02]} 39. Ra2 {[%emt 0:00:10]} Rb4 {[%emt 0:00:04]} 40. Kc3 {[%emt 0:00:00]} Kd7 {[%emt 0:00:00]} 41. Rb2 {[%emt 0:05:39]} a3 {[%emt 0:04:00]} 42. Ra2 {[%emt 0:00:06]} Ra4 {[%emt 0:17:47]} 43. Kb3 {[%emt 0:00:42]} Ra6 {[%emt 0:00:04]} 44. Rxa3 {[%emt 0:00:16]} Rxa3+ {[%emt 0:03:08]} 45. Kxa3 {[%emt 0:00:05]} Kxd6 {[%emt 0:00:18]} 46. Ka4 {[%emt 0:05:45]} e5 {[%emt 0:04:31]} 47. Kb5 {[%emt 0:00:10]} exf4 {[%emt 0:01:38]} 48. gxf4 {[%emt 0:00:06]} f6 {[%emt 0:00:03]} 49. h4 {[%emt 0:02:10]} g6 {[%emt 0:00:14]} 50. d4 {[%emt 0:01:31]} cxd4 {[%emt 0:00:26]} 51. c5+ {[%emt 0:00:05]} Kc7 {[%emt 0:00:03]} 52. Kc4 {[%emt 0:00:05]} Kc6 {[%emt 0:00:03]} 53. Kxd4 {[%emt 0:00:10]} h6 {[%emt 0:00:10]} 54. Kc4 {[%emt 0:00:26]} g5 {[%emt 0:00:10]} 55. hxg5 {[%emt 0:00:19]} hxg5 {[%emt 0:00:42]} 56. fxg5 {[%emt 0:00:38]} fxg5 {[%emt 0:00:06]} 57. Kd4 {[%emt 0:00:05]} g4 {[%emt 0:00:03]} 1/2-1/2

[Event "Polish Youth G16 Championship 2023"]
[Site "Jastrzebia Gora"]
[Date "2023.03.19"]
[Round "9.8"]
[White "Kaczmarek, Paulina"]
[Black "Sprzeczka, Emilia"]
[Result "0-1"]
[ECO "B76"]
[WhiteElo "1317"]
[BlackElo "1887"]
[Annotator "NA RC COMBH"]
[PlyCount "70"]
[EventDate "2023.03.11"]
[EventType "swiss"]
[EventCountry "POL"]
[SourceTitle "playchess.com"]
[Source "ChessBase"]
[SourceQuality "1"]
[TimeControl "40/5400+30:1800+30"]

1. e4 c5 {[%emt 0:00:05]} 2. Nf3 d6 3. d4 {[%emt 0:00:17]} cxd4 {[%emt 0:00:09]} 4. Nxd4 {[%emt 0:00:10]} Nf6 {[%emt 0:00:05]} 5. Nc3 {[%emt 0:00:12]} g6 {[%emt 0:00:05]} 6. Be3 {[%emt 0:00:12]} Bg7 {[%emt 0:00:06]} 7. f3 {[%emt 0:00:04]} O-O {[%emt 0:00:05]} 8. Qd2 {[%emt 0:00:10]} Nc6 {[%emt 0:00:06]} 9. g4 {[%emt 0:00:30]} Be6 {[%emt 0:00:37]} 10. Nxe6 {[%emt 0:01:16]} fxe6 {[%emt 0:00:06]} 11. O-O-O {[%emt 0:00:24]} Ne5 {[%emt 0:01:07]} 12. Be2 {[%emt 0:00:33]} Qc8 {[%emt 0:01:03]} 13. Bh6 {[%emt 0:04:18]} Nc4 {[%emt 0:08:48]} 14. Bxc4 {[%emt 0:02:07]} Qxc4 {[%emt 0:00:17]} 15. Bxg7 {[%emt 0:09:21]} Kxg7 {[%emt 0:00:07]} 16. h4 {[%emt 0:00:02]} b5 {[%emt 0:08:22]} 17. h5 {[%emt 0:05:51]} Rh8 {[%emt 0:07:34]} ({Black should play} 17... Rac8 $14) 18. g5 $2 {[%emt 0:06:28]} (18. Kb1 $16 {stays on course.}) 18... Nxh5 {[%emt 0:04:45]} 19. Qe3 {[%emt 0:37:21]} Rhc8 {[%emt 0:07:43]} 20. Rh2 {[%emt 0:05:21]} a5 {[%emt 0:09:20]} 21. f4 $19 {[%emt 0:05:21]} (21. e5 $17 d5 22. Qd4) 21... b4 {[%emt 0:01:17]} 22. Nb1 {[%emt 0:01:29]} d5 {[%emt 0:22:57]} 23. exd5 {[%emt 0:05:56]} Qxf4 {[%emt 0:00:28]} 24. Qxf4 {[%emt 0:00:20]} Nxf4 {[%emt 0:00:06]} 25. d6 {[%emt 0:02:02]} Ra7 {[%emt 0:04:51]} 26. Rd4 {[%emt 0:03:15]} e5 {[%emt 0:00:42]} 27. Rd1 {[%emt 0:00:38]} Rd7 {[%emt 0:01:38]} 28. dxe7 {[%emt 0:00:45]} Rxe7 {[%emt 0:00:09]} 29. Rdh1 {[%emt 0:01:27]} Kg8 {[%emt 0:00:52]} 30. Kd1 {[%emt 0:00:59]} e4 {[%emt 0:01:35]} 31. c3 {[%emt 0:02:01]} Rc5 {[%emt 0:03:34]} 32. Re1 {[%emt 0:03:51]} e3 {[%emt 0:00:30]} 33. Nd2 bxc3 {[%emt 0:02:09]} 34. bxc3 {[%emt 0:02:17]} Rxc3 {[%emt 0:00:19]} 35. Ree2 {[%emt 0:01:53]} Rd7 {[%emt 0:00:00]} 0-1

[Event "Polish Youth G16 Championship 2023"]
[Site "Jastrzebia Gora"]
[Date "2023.03.19"]
[Round "9.10"]
[White "Makarec, Anna"]
[Black "Kulczycka, Zofia"]
[Result "1-0"]
[ECO "B26"]
[WhiteElo "1271"]
[BlackElo "1547"]
[Annotator "NA RC COMBH"]
[PlyCount "127"]
[EventDate "2023.03.11"]
[EventType "swiss"]
[EventCountry "POL"]
[SourceTitle "playchess.com"]
[Source "ChessBase"]
[SourceQuality "1"]
[TimeControl "40/5400+30:1800+30"]

1. e4 {[%emt 0:00:03]} c5 {[%emt 0:00:05]} 2. Nc3 {[%emt 0:00:15]} d6 {[%emt 0:00:07]} 3. g3 {[%emt 0:00:28]} Nc6 {[%emt 0:00:09]} 4. Bg2 {[%emt 0:00:14]} g6 {[%emt 0:00:09]} 5. Nge2 {[%emt 0:00:32]} Bg7 {[%emt 0:00:12]} 6. d3 {[%emt 0:00:22]} e5 {[%emt 0:00:11]} 7. O-O {[%emt 0:01:21]} Nge7 {[%emt 0:00:08]} 8. Be3 {[%emt 0:02:05]} O-O {[%emt 0:00:14]} 9. Qd2 {[%emt 0:02:46]} Nd4 {[%emt 0:00:21]} 10. f4 {[%emt 0:02:09]} Rb8 {[%emt 0:00:27]} 11. h3 {[%emt 0:04:15]} b5 {[%emt 0:03:04]} 12. g4 {[%emt 0:02:14]} b4 {[%emt 0:02:10]} 13. Nd1 {[%emt 0:01:09]} f5 {[%emt 0:03:09]} 14. gxf5 {[%emt 0:04:02]} gxf5 {[%emt 0:00:38]} 15. Ng3 {[%emt 0:04:26]} Be6 {[%emt 0:07:23]} 16. c3 {[%emt 0:08:38]} bxc3 {[%emt 0:06:41]} 17. bxc3 {[%emt 0:00:09]} Nb5 {[%emt 0:01:02]} 18. Nh5 {[%emt 0:06:45]} Bh8 {[%emt 0:06:24]} 19. fxe5 {[%emt 0:05:00]} Bxe5 {[%emt 0:01:12]} 20. d4 {[%emt 0:03:10]} cxd4 {[%emt 0:03:25]} 21. cxd4 {[%emt 0:00:16]} Bh8 {[%emt 0:01:14]} 22. a4 {[%emt 0:04:56]} Nc7 {[%emt 0:02:18]} 23. Bh6 {[%emt 0:01:36]} Rf7 {[%emt 0:06:40]} 24. Ra3 {[%emt 0:05:53]} Ng6 {[%emt 0:05:38]} 25. d5 {[%emt 0:05:23]} Bc8 {[%emt 0:04:56]} 26. Raf3 {[%emt 0:01:17]} Qh4 {[%emt 0:06:25]} 27. Ng3 {[%emt 0:09:36]} f4 {[%emt 0:07:17]} 28. Bxf4 {[%emt 0:00:35]} Nxf4 {[%emt 0:00:49]} 29. Nf5 {[%emt 0:05:56]} Bxf5 {[%emt 0:07:45]} 30. Rxf4 {[%emt 0:00:22]} Qf6 {[%emt 0:01:28]} 31. Rxf5 {[%emt 0:01:21]} Qd4+ {[%emt 0:00:16]} 32. Qe3 {[%emt 0:00:44]} Rxf5 {[%emt 0:04:45]} 33. exf5 {[%emt 0:00:15]} Nxd5 {[%emt 0:06:02]} 34. Qf2 {[%emt 0:01:14]} Nf4 {[%emt 0:02:04]} 35. Kh1 {[%emt 0:00:34]} Qxf2 {[%emt 0:00:15]} 36. Nxf2 {[%emt 0:01:25]} Nxg2 {[%emt 0:00:08]} 37. Kxg2 {[%emt 0:00:20]} Rb4 {[%emt 0:03:00]} 38. a5 {[%emt 0:01:02]} Ra4 {[%emt 0:01:09]} 39. Rd1 {[%emt 0:00:20]} Be5 {[%emt 0:01:23]} 40. Rd5 {[%emt 0:00:00]} Ra2 {[%emt 0:00:00]} 41. Kf3 {[%emt 0:01:23]} Ra3+ {[%emt 0:17:15]} 42. Ke2 {[%emt 0:01:29]} Ra4 {[%emt 0:05:03]} 43. Ng4 {[%emt 0:03:00]} Ra2+ {[%emt 0:02:18]} 44. Kd3 {[%emt 0:02:00]} Ra3+ {[%emt 0:01:29]} 45. Kc4 {[%emt 0:00:17]} Bf4 {[%emt 0:02:16]} 46. h4 {[%emt 0:11:35]} a6 {[%emt 0:02:54]} 47. Nf6+ {[%emt 0:01:09]} Kf7 {[%emt 0:00:07]} 48. Nxh7 {[%emt 0:00:17]} Rh3 {[%emt 0:01:55]} 49. Ng5+ {[%emt 0:00:31]} Bxg5 {[%emt 0:00:07]} 50. hxg5 {[%emt 0:00:09]} Rh4+ {[%emt 0:00:51]} 51. Rd4 {[%emt 0:00:19]} Rh5 {[%emt 0:00:49]} 52. Rg4 {[%emt 0:00:08]} Rh8 {[%emt 0:02:03]} 53. Kd5 {[%emt 0:00:34]} Rd8 {[%emt 0:00:10]} 54. Rc4 {[%emt 0:02:01]} Ke7 {[%emt 0:01:19]} 55. Rc7+ {[%emt 0:00:39]} Kf8 {[%emt 0:00:22]} 56. Rc6 {[%emt 0:00:47]} Rb8 {[%emt 0:00:21]} 57. Kxd6 {[%emt 0:00:17]} Rb5 {[%emt 0:00:22]} 58. Rc5 {[%emt 0:00:13]} Rb2 {[%emt 0:00:10]} 59. Ke6 {[%emt 0:00:35]} Re2+ {[%emt 0:01:31]} 60. Kf6 {[%emt 0:00:14]} Re8 {[%emt 0:00:36]} 61. Rc6 {[%emt 0:00:45]} Ra8 {[%emt 0:00:11]} 62. g6 {[%emt 0:00:37]} Kg8 {[%emt 0:00:49]} 63. Kg5 {[%emt 0:00:15]} Kf8 {[%emt 0:00:30]} 64. f6 {[%emt 0:00:16]} 1-0

[Event "Polish Youth G16 Championship 2023"]
[Site "Jastrzebia Gora"]
[Date "2023.03.19"]
[Round "9.11"]
[White "Biniak, Zuzanna"]
[Black "Zielinska, Aleksandra"]
[Result "1-0"]
[ECO "B50"]
[WhiteElo "1457"]
[BlackElo "1613"]
[Annotator "NA RC COMBH"]
[PlyCount "91"]
[EventDate "2023.03.11"]
[EventType "swiss"]
[EventCountry "POL"]
[SourceTitle "playchess.com"]
[Source "ChessBase"]
[SourceQuality "1"]
[TimeControl "40/5400+30:1800+30"]

1. e4 {[%emt 0:00:02]} c5 {[%emt 0:00:06]} 2. Nf3 {[%emt 0:00:06]} d6 {[%emt 0:00:07]} 3. d3 {[%emt 0:00:05]} g6 {[%emt 0:00:06]} 4. g3 {[%emt 0:00:05]} Bg7 {[%emt 0:00:07]} 5. Bg2 {[%emt 0:00:05]} Nc6 {[%emt 0:00:10]} 6. c3 {[%emt 0:00:31]} Nf6 {[%emt 0:00:10]} 7. O-O {[%emt 0:00:10]} O-O {[%emt 0:00:14]} 8. Nbd2 {[%emt 0:01:05]} e5 {[%emt 0:01:21]} 9. a3 {[%emt 0:00:16]} b5 {[%emt 0:00:52]} 10. b4 {[%emt 0:03:23]} a5 {[%emt 0:01:20]} 11. bxa5 {[%emt 0:08:58]} Rxa5 {[%emt 0:05:37]} 12. c4 {[%emt 0:06:35]} b4 {[%emt 0:01:32]} 13. Nb3 {[%emt 0:00:17]} Ra8 {[%emt 0:01:37]} 14. axb4 {[%emt 0:01:27]} Rxa1 {[%emt 0:04:19]} 15. Nxa1 {[%emt 0:00:07]} Nxb4 {[%emt 0:04:03]} 16. Nc2 {[%emt 0:00:25]} Nxc2 {[%emt 0:05:30]} 17. Qxc2 {[%emt 0:00:14]} Bd7 {[%emt 0:04:55]} 18. Bd2 {[%emt 0:00:44]} Qc8 {[%emt 0:03:26]} 19. Rb1 {[%emt 0:04:29]} Nh5 {[%emt 0:05:01]} 20. Nh4 {[%emt 0:06:27]} Bf6 {[%emt 0:12:26]} 21. Nf3 {[%emt 0:01:12]} Be7 {[%emt 0:03:29]} 22. Qb3 {[%emt 0:11:36]} f5 {[%emt 0:04:53]} 23. exf5 {[%emt 0:01:14]} Bxf5 {[%emt 0:03:19]} 24. Bg5 {[%emt 0:06:28]} Re8 {[%emt 0:08:28]} 25. Bxe7 {[%emt 0:01:18]} Rxe7 {[%emt 0:00:12]} 26. Nh4 {[%emt 0:04:15]} Be6 {[%emt 0:09:15]} 27. Qb6 {[%emt 0:02:23]} Rd7 {[%emt 0:03:11]} 28. Bc6 {[%emt 0:04:59]} Rf7 {[%emt 0:04:03]} 29. Ra1 {[%emt 0:06:37]} Qc7 {[%emt 0:05:05]} 30. Ra8+ {[%emt 0:10:29]} Kg7 {[%emt 0:00:34]} 31. Qxc7 {[%emt 0:00:38]} Rxc7 {[%emt 0:00:06]} 32. Bb5 {[%emt 0:01:27]} d5 {[%emt 0:07:22]} 33. Nf3 {[%emt 0:05:28]} dxc4 {[%emt 0:01:59]} 34. dxc4 {[%emt 0:01:00]} Kf6 {[%emt 0:00:49]} 35. Rf8+ {[%emt 0:00:38]} Rf7 {[%emt 0:00:21]} 36. Rxf7+ {[%emt 0:00:30]} Bxf7 {[%emt 0:00:03]} 37. Nd2 {[%emt 0:00:27]} Kf5 {[%emt 0:01:52]} 38. Bd7+ {[%emt 0:01:04]} Be6 {[%emt 0:00:38]} 39. g4+ {[%emt 0:00:30]} Kxg4 {[%emt 0:00:34]} 40. Bxe6+ {[%emt 0:00:00]} Kf4 {[%emt 0:00:00]} 41. Nb3 {[%emt 0:01:01]} Nf6 {[%emt 0:03:48]} 42. Nxc5 {[%emt 0:02:33]} e4 {[%emt 0:01:07]} 43. Nd7 {[%emt 0:02:56]} Nxd7 {[%emt 0:01:23]} 44. Bxd7 {[%emt 0:00:07]} h6 {[%emt 0:02:19]} 45. c5 {[%emt 0:00:15]} Ke5 {[%emt 0:00:09]} 46. c6 {[%emt 0:00:03]} 1-0

[Event "Polish Youth G16 Championship 2023"]
[Site "Jastrzebia Gora"]
[Date "2023.03.19"]
[Round "9.12"]
[White "Giemza, Julia"]
[Black "Romejko, Jagoda"]
[Result "1-0"]
[ECO "B01"]
[WhiteElo "1536"]
[BlackElo "1483"]
[Annotator "NA RC COMBH"]
[PlyCount "71"]
[EventDate "2023.03.11"]
[EventType "swiss"]
[EventCountry "POL"]
[SourceTitle "playchess.com"]
[Source "ChessBase"]
[SourceQuality "1"]
[TimeControl "40/5400+30:1800+30"]

1. e4 {[%emt 0:00:01]} d5 {[%emt 0:00:05]} 2. exd5 {[%emt 0:00:05]} Qxd5 {[%emt 0:00:03]} 3. Nc3 {[%emt 0:00:10]} Qd8 {[%emt 0:00:04]} 4. d4 {[%emt 0:00:15]} Nf6 {[%emt 0:00:04]} 5. Bc4 {[%emt 0:00:33]} c6 {[%emt 0:00:56]} 6. Nf3 {[%emt 0:00:31]} Bf5 {[%emt 0:00:15]} 7. O-O {[%emt 0:00:42]} e6 {[%emt 0:00:24]} 8. h3 {[%emt 0:00:29]} Be7 {[%emt 0:03:25]} 9. Re1 {[%emt 0:00:36]} O-O {[%emt 0:00:38]} 10. Nh4 {[%emt 0:03:18]} Bg6 {[%emt 0:11:11]} 11. Nxg6 {[%emt 0:02:12]} hxg6 {[%emt 0:00:09]} 12. Ne2 {[%emt 0:00:52]} Nbd7 {[%emt 0:04:23]} 13. Ng3 {[%emt 0:02:43]} Nd5 {[%emt 0:06:05]} 14. Qf3 {[%emt 0:10:02]} N7f6 {[%emt 0:07:08]} 15. c3 {[%emt 0:03:43]} Rc8 {[%emt 0:02:54]} 16. Bb3 {[%emt 0:09:28]} b5 {[%emt 0:07:48]} 17. Bd2 {[%emt 0:02:26]} c5 {[%emt 0:02:31]} 18. dxc5 {[%emt 0:02:13]} Bxc5 {[%emt 0:00:28]} 19. Rad1 {[%emt 0:00:58]} Qb6 {[%emt 0:02:05]} 20. h4 {[%emt 0:07:27]} Rfd8 {[%emt 0:08:54]} 21. Bg5 {[%emt 0:04:15]} Re8 {[%emt 0:13:41]} 22. Re2 {[%emt 0:04:12]} Bd6 {[%emt 0:12:49]} 23. Rd3 {[%emt 0:07:21]} a5 {[%emt 0:09:36]} 24. Ne4 {[%emt 0:02:52]} Nxe4 {[%emt 0:01:17]} 25. Qxe4 {[%emt 0:00:27]} Ne7 {[%emt 0:01:03]} 26. g4 {[%emt 0:05:12]} Bb8 {[%emt 0:03:08]} 27. h5 {[%emt 0:02:41]} gxh5 {[%emt 0:01:01]} 28. Rh3 {[%emt 0:02:40]} h4 {[%emt 0:01:17]} 29. Bxe7 {[%emt 0:01:49]} Rxe7 {[%emt 0:00:16]} 30. Rxh4 {[%emt 0:00:06]} g6 {[%emt 0:01:12]} 31. Qh1 {[%emt 0:00:14]} Ree8 {[%emt 0:00:36]} 32. Rh8+ {[%emt 0:00:18]} Kg7 {[%emt 0:00:04]} 33. Qh6+ {[%emt 0:00:19]} Kf6 {[%emt 0:00:08]} 34. Qh4+ {[%emt 0:01:11]} Kg7 {[%emt 0:00:34]} 35. Rh7+ {[%emt 0:00:18]} Kf8 {[%emt 0:00:12]} 36. Qf6 {[%emt 0:00:10]} 1-0